Workbook

Sheet РКЦ
M2: К лимитированных * К тендерного снижения | N2: 1.214
G6: Распределение Контрактной цены
G9: № п/п | H9: № сметы | I9: Единичная расценка | J9: Наименование работ | K9: Ед. изм. | L9: Объем | M9: Цена за единицу, руб | N9: Стоимость работ всего, руб.
G12: 1 | J12: =G12+1 -> 2 | K12: 3 | L12: =K12+1 -> 4 | M12: 5 | N12: 6
A13: I. | B13: РАБОТЫ, в том числе: | G13: 1. | J13: РАБОТЫ, в том числе:
G14: 1.1. | J14: Строительно-монтажные работы:
G15: 3и13 | J15: Биологическая рекультивация, | K15: га | L15: =0.056+0.024 -> 0.08 | M15: 225960.18 | N15: =M15*L15 -> 18076.8144
G17: 1 | H17: 01-03-01 изм 6 | I17: ФЕР47-02-005-02 | J17: Вспашка земель с одновременным боронованием на глубину до 30 см на почвах: средних | K17: 1 га | L17: 0.08 | M17: =N17/L17 -> 2974.3 | N17: =196*$N$2 -> 237.944
G18: 2 | H18: 01-03-01 изм 6 | I18: ФЕР47-02-012-07 | J18: Культивация почвы: с одновременным боронованием | K18: 1 га | L18: 0.08 | M18: 986.375 | N18: =65*$N$2 -> 78.91
G19: 3 | H19: 01-03-01 изм 6 | I19: ФЕР47-02-050-01 | J19: Внесение удобрений с механизированной загрузкой с разбрасыванием удобрений минеральных | K19: 1 га | L19: 0.08 | M19: 3217.1 | N19: =212*$N$2 -> 257.368
G20: 4 | H20: 01-03-01 изм 6 | I20: ФССЦ-114-0021 | J20: Удобрения: сложно-смешанные гранулированные насыпью | K20: т | L20: 0.0064 | M20: 10432.8125 | N20: =55*$N$2 -> 66.77
G21: 5 | H21: 01-03-01 изм 6 | I21: ФЕР47-02-050-02 | J21: Внесение удобрений с механизированной загрузкой с разбрасыванием удобрений: органических | K21: 1 га | L21: 0.08 | M21: 1153.3 | N21: =76*$N$2 -> 92.264
G22: 6 | H22: 01-03-01 изм 6 | I22: ФССЦ-407-0022 | J22: Органичекие удобрения | K22: кг | L22: 4800 | M22: 3.1564 | N22: =12480*$N$2 -> 15150.72
G23: 7 | H23: 01-03-01 изм 6 | I23: ФЕР47-02-093-02 | J23: Посев: многолетних трав | K23: 1 га | L23: 0.08 | M23: 1138.125 | N23: =75*$N$2 -> 91.05
G24: 8 | H24: 01-03-01 изм 6 | I24: ФССЦ-414-0317 | J24: Семена: Тимофеевка | K24: кг | L24: 4.8 | M24: 439.31625 | N24: =1737*$N$2 -> 2108.718
J25: Итого стоимость СМР, руб. | K25: руб | N25: =N15 -> 18076.8144
J26: НДС 18%, руб | K26: руб | N26: =N25*18% -> 3253.826592
J27: Всего стоимость СМР, руб. | K27: руб | N27: =N25+N26 -> 21330.64099

Sheet 01-03-01
B1: УТВЕРЖДАЮ | Q1: СОГЛАСОВАНО
B3: _________________ // | Q3: _________________ //
B4: "___" __________ 200_ г. | Q4: "___" __________ 200_ г.
B8: (наименование стройки)
B10: ЛОКАЛЬНЫЙ СМЕТНЫЙ РАСЧЕТ
B12: на 01-03-01 Биологическая рекультивация
B13: (наименование работ и затрат, наименование объекта)
D15: Основание:
D16: Сметная стоимость | E16: 10425 руб.
D17: Составлен в базисных и текущих ценах по состоянию на 200__ г.
B19: № пп | C19: Обоснование | D19: Наименование | E19: Единица измерения | F19: Количество | G19: Стоимость единицы в базисных ценах | K19: Общая стоимость в текущих ценах | P19: ФОТ | Q19: Нормативные показатели (2001 г.) в % от ФОТ Ннр | R19: Нормативные показатели (2001 г.) в % от ФОТ Нсп | S19: Сумма накладных расходов | T19: Сумма сметной прибыли | U19: Стоим СМР в текущих ценах с накладными и сметной прибылью | V19: ТЗ осн.раб. на единицу | W19: ТЗ мех. на единицу | X19: ТЗ осн.раб. всего | Y19: ТЗ мех. всего
G20: Всего | H20: Экспл. маш. | I20: Материалы | K20: Всего | L20: оплата труда | M20: Экспл. маш. | N20: в т.ч. оплата труда | O20: Материалы
G21: оплата труда | H21: в т.ч. оплата труда
B22: 1 | C22: 2 | D22: 3 | E22: 4 | F22: 5 | G22: 6 | H22: 7 | I22: 8 | K22: 10 | L22: 11 | M22: 12 | N22: 13 | O22: 14 | P22: 15 | Q22: 16 | R22: 17 | S22: 18 | T22: 19 | U22: 20 | V22: 21 | W22: 22 | X22: 23 | Y22: 24
B23: Раздел 1.
A24: 3 | B24: 1 | C24: ФЕР47-02-005-02 | D24: Вспашка земель с одновременным боронованием на глубину до 30 см на почвах: средних | E24: 1 га | F24: 0.056 | G24: 130.46 | H24: 130,46 _____ 21,33 | K24: 61 | M24: 61 | N24: 40 | P24: =0+40 -> 40 | Q24: НР 140%*0,85 от ФОТ | R24: СП 90%*0,8 от ФОТ | S24: 48 | T24: 29 | U24: 138 | W24: 1.58 | X24: =IF(V24<>"",V24*F24,0) -> 0 | Y24: =IF(W24<>"",W24*F24,0) -> 0.08848
A25: 3 | B25: 2 | C25: ФЕР47-02-012-07 | D25: Культивация почвы: с одновременным боронованием | E25: 1 га | F25: 0.056 | G25: 42.39 | H25: 42,39 _____ 7,16 | K25: 20 | M25: 20 | N25: 13 | P25: =0+13 -> 13 | Q25: НР 140%*0,85 от ФОТ | R25: СП 90%*0,8 от ФОТ | S25: 15 | T25: 9 | U25: 44 | W25: 0.53 | X25: =IF(V25<>"",V25*F25,0) -> 0 | Y25: =IF(W25<>"",W25*F25,0) -> 0.02968
A26: 3 | B26: 3 | C26: ФЕР47-02-050-01 | D26: Внесение удобрений с механизированной загрузкой с разбрасыванием удобрений минеральных | E26: 1 га | F26: 0.056 | G26: 140.82 | H26: 140,82 _____ 23,09 | K26: 65 | M26: 65 | N26: 43 | P26: =0+43 -> 43 | Q26: НР 140%*0,85 от ФОТ | R26: СП 90%*0,8 от ФОТ | S26: 51 | T26: 31 | U26: 147 | W26: 1.71 | X26: 0 | Y26: 0.09576
A27: 3 | B27: 4 | C27: ФССЦ-114-0021 | D27: Удобрения: сложно-смешанные гранулированные насыпью | E27: т | F27: 0.00448 | G27: 1480 | I27: 1480 | K27: 38 | O27: 38 | P27: =0+0 -> 0 | U27: 38 | X27: 0 | Y27: 0
A28: 3 | B28: 5 | C28: ФЕР47-02-050-02 | D28: Внесение удобрений с механизированной загрузкой с разбрасыванием удобрений: органических | E28: 1 га | F28: 0.056 | G28: 53.67 | H28: 53,67 _____ 7,7 | K28: 25 | M28: 25 | N28: 14 | P28: =0+14 -> 14 | Q28: НР 140%*0,85 от ФОТ | R28: СП 90%*0,8 от ФОТ | S28: 17 | T28: 10 | U28: 52 | W28: 0.57 | X28: 0 | Y28: 0.03192
A29: 3 | B29: 6 | C29: ФССЦ-407-0022 | D29: Органичекие удобрения | E29: кг | F29: 3360 | G29: 0.45 | I29: 0.45 | K29: 8736 | O29: 8736 | P29: =0+0 -> 0 | U29: 8736 | X29: 0 | Y29: 0
A30: 3 | B30: 7 | C30: ФЕР47-02-093-02 | D30: Посев: многолетних трав | E30: 1 га | F30: 0.056 | G30: 61.41 | H30: 61,41 _____ 6,75 | K30: 29 | M30: 29 | N30: 13 | P30: =0+13 -> 13 | Q30: НР 140%*0,85 от ФОТ | R30: СП 90%*0,8 от ФОТ | S30: 15 | T30: 9 | U30: 53 | W30: 0.5 | X30: 0 | Y30: 0.028
A31: 3 | B31: 8 | C31: ФССЦ-414-0317 | D31: Семена: Тимофеевка | E31: кг | F31: 3.36 | G31: 62.72 | I31: 62.72 | K31: 1216 | O31: 1216 | P31: =0+0 -> 0 | U31: 1216 | X31: 0 | Y31: 0

Sheet 01-03-01 изм 6
B1: УТВЕРЖДАЮ | Q1: СОГЛАСОВАНО
B3: _________________ // | Q3: _________________ //
B4: "___" __________ 200_ г. | Q4: "___" __________ 200_ г.
B8: (наименование стройки)
B10: ЛОКАЛЬНЫЙ СМЕТНЫЙ РАСЧЕТ
B12: на 01-03-01 изм 6 Биологическая рекультивация,
B13: (наименование работ и затрат, наименование объекта)
D15: Основание:
D16: Сметная стоимость | E16: 14895 руб. | AD16: ИЗМ. 2
D17: Составлен в базисных и текущих ценах по состоянию на 200__ г.
AJ18: =SUM(AJ24:AJ31) -> 4472
B19: № пп | C19: Обоснование | D19: Наименование | E19: Единица измерения | F19: Количество | G19: Стоимость единицы в базисных ценах | K19: Общая стоимость в текущих ценах | P19: ФОТ | Q19: Нормативные показатели (2001 г.) в % от ФОТ Ннр | R19: Нормативные показатели (2001 г.) в % от ФОТ Нсп | S19: Сумма накладных расходов | T19: Сумма сметной прибыли | U19: Стоим СМР в текущих ценах с накладными и сметной прибылью | V19: ТЗ осн.раб. на единицу | W19: ТЗ мех. на единицу | X19: ТЗ осн.раб. всего | Y19: ТЗ мех. всего | AB19: № пп | AC19: Обоснование | AD19: Наименование | AE19: Единица измерения | AF19: Количество | AG19: Стоим СМР в текущих ценах с накладными и сметной прибылью | AI19: Изменение объема | AJ19: Изменение стоимости
G20: Всего | H20: Экспл. маш. | I20: Материалы | K20: Всего | L20: оплата труда | M20: Экспл. маш. | N20: в т.ч. оплата труда | O20: Материалы
G21: оплата труда | H21: в т.ч. оплата труда
B22: 1 | C22: 2 | D22: 3 | E22: 4 | F22: 5 | G22: 6 | H22: 7 | I22: 8 | K22: 10 | L22: 11 | M22: 12 | N22: 13 | O22: 14 | P22: 15 | Q22: 16 | R22: 17 | S22: 18 | T22: 19 | U22: 20 | V22: 21 | W22: 22 | X22: 23 | Y22: 24
A23: 3и13 | B23: Раздел 1.
A24: 3и13 | B24: 1 | C24: ФЕР47-02-005-02 | D24: Вспашка земель с одновременным боронованием на глубину до 30 см на почвах: средних | E24: 1 га | F24: 0.08 | G24: 130.46 | H24: 130,46 _____ 21,33 | K24: 87 | M24: 87 | N24: 57 | P24: =0+57 -> 57 | Q24: НР 140%*0,85 от ФОТ | R24: СП 90%*0,8 от ФОТ | S24: 68 | T24: 41 | U24: 196 | W24: 1.58 | AB24: ='01-03-01'!B24 -> 1 | AC24: ='01-03-01'!C24 -> ФЕР47-02-005-02 | AD24: ='01-03-01'!D24 -> Вспашка земель с одновременным боронованием на глубину до 30 см на почвах: средних | AE24: ='01-03-01'!E24 -> 1 га | AF24: ='01-03-01'!F24 -> 0.056 | AG24: ='01-03-01'!U24 -> 138 | AI24: =F24-AF24 -> 0.024 | AJ24: =U24-AG24 -> 58
A25: 3и13 | B25: 2 | C25: ФЕР47-02-012-07 | D25: Культивация почвы: с одновременным боронованием | E25: 1 га | F25: 0.08 | G25: 42.39 | H25: 42,39 _____ 7,16 | K25: 28 | M25: 28 | N25: 19 | P25: =0+19 -> 19 | Q25: НР 140%*0,85 от ФОТ | R25: СП 90%*0,8 от ФОТ | S25: 23 | T25: 14 | U25: 65 | W25: 0.53 | AB25: ='01-03-01'!B25 -> 2 | AC25: ='01-03-01'!C25 -> ФЕР47-02-012-07 | AD25: ='01-03-01'!D25 -> Культивация почвы: с одновременным боронованием | AE25: ='01-03-01'!E25 -> 1 га | AF25: ='01-03-01'!F25 -> 0.056 | AG25: ='01-03-01'!U25 -> 44 | AI25: =F25-AF25 -> 0.024 | AJ25: =U25-AG25 -> 21
A26: 3и13 | B26: 3 | C26: ФЕР47-02-050-01 | D26: Внесение удобрений с механизированной загрузкой с разбрасыванием удобрений минеральных | E26: 1 га | F26: 0.08 | G26: 140.82 | H26: 140,82 _____ 23,09 | K26: 93 | M26: 93 | N26: 62 | P26: =0+62 -> 62 | Q26: НР 140%*0,85 от ФОТ | R26: СП 90%*0,8 от ФОТ | S26: 74 | T26: 45 | U26: 212 | W26: 1.71 | AB26: ='01-03-01'!B26 -> 3 | AC26: ='01-03-01'!C26 -> ФЕР47-02-050-01 | AD26: ='01-03-01'!D26 -> Внесение удобрений с механизированной загрузкой с разбрасыванием удобрений минеральных | AE26: ='01-03-01'!E26 -> 1 га | AF26: ='01-03-01'!F26 -> 0.056 | AG26: ='01-03-01'!U26 -> 147 | AI26: 0.024 | AJ26: 65
A27: 3и13 | B27: 4 | C27: ФССЦ-114-0021 | D27: Удобрения: сложно-смешанные гранулированные насыпью | E27: т | F27: 0.0064 | G27: 1480 | I27: 1480 | K27: 55 | O27: 55 | P27: =0+0 -> 0 | U27: 55 | AB27: ='01-03-01'!B27 -> 4 | AC27: ='01-03-01'!C27 -> ФССЦ-114-0021 | AD27: ='01-03-01'!D27 -> Удобрения: сложно-смешанные гранулированные насыпью | AE27: ='01-03-01'!E27 -> т | AF27: ='01-03-01'!F27 -> 0.00448 | AG27: ='01-03-01'!U27 -> 38 | AI27: 0.00192 | AJ27: 17
A28: 3и13 | B28: 5 | C28: ФЕР47-02-050-02 | D28: Внесение удобрений с механизированной загрузкой с разбрасыванием удобрений: органических | E28: 1 га | F28: 0.08 | G28: 53.67 | H28: 53,67 _____ 7,7 | K28: 36 | M28: 36 | N28: 21 | P28: =0+21 -> 21 | Q28: НР 140%*0,85 от ФОТ | R28: СП 90%*0,8 от ФОТ | S28: 25 | T28: 15 | U28: 76 | W28: 0.57 | AB28: ='01-03-01'!B28 -> 5 | AC28: ='01-03-01'!C28 -> ФЕР47-02-050-02 | AD28: ='01-03-01'!D28 -> Внесение удобрений с механизированной загрузкой с разбрасыванием удобрений: органических | AE28: ='01-03-01'!E28 -> 1 га | AF28: ='01-03-01'!F28 -> 0.056 | AG28: ='01-03-01'!U28 -> 52 | AI28: 0.024 | AJ28: 24
A29: 3и13 | B29: 6 | C29: ФССЦ-407-0022 | D29: Органичекие удобрения | E29: кг | F29: 4800 | G29: 0.45 | I29: 0.45 | K29: 12480 | O29: 12480 | P29: =0+0 -> 0 | U29: 12480 | AB29: ='01-03-01'!B29 -> 6 | AC29: ='01-03-01'!C29 -> ФССЦ-407-0022 | AD29: ='01-03-01'!D29 -> Органичекие удобрения | AE29: ='01-03-01'!E29 -> кг | AF29: ='01-03-01'!F29 -> 3360 | AG29: ='01-03-01'!U29 -> 8736 | AI29: 1440 | AJ29: 3744
A30: 3и13 | B30: 7 | C30: ФЕР47-02-093-02 | D30: Посев: многолетних трав | E30: 1 га | F30: 0.08 | G30: 61.41 | H30: 61,41 _____ 6,75 | K30: 41 | M30: 41 | N30: 18 | P30: =0+18 -> 18 | Q30: НР 140%*0,85 от ФОТ | R30: СП 90%*0,8 от ФОТ | S30: 21 | T30: 13 | U30: 75 | W30: 0.5 | AB30: ='01-03-01'!B30 -> 7 | AC30: ='01-03-01'!C30 -> ФЕР47-02-093-02 | AD30: ='01-03-01'!D30 -> Посев: многолетних трав | AE30: ='01-03-01'!E30 -> 1 га | AF30: ='01-03-01'!F30 -> 0.056 | AG30: ='01-03-01'!U30 -> 53 | AI30: 0.024 | AJ30: 22
A31: 3и13 | B31: 8 | C31: ФССЦ-414-0317 | D31: Семена: Тимофеевка | E31: кг | F31: 4.8 | G31: 62.72 | I31: 62.72 | K31: 1737 | O31: 1737 | P31: =0+0 -> 0 | U31: 1737 | AB31: ='01-03-01'!B31 -> 8 | AC31: ='01-03-01'!C31 -> ФССЦ-414-0317 | AD31: ='01-03-01'!D31 -> Семена: Тимофеевка | AE31: ='01-03-01'!E31 -> кг | AF31: ='01-03-01'!F31 -> 3.36 | AG31: ='01-03-01'!U31 -> 1216 | AI31: 1.44 | AJ31: 521
B32: Итого прямые затраты по смете в текущих ценах | K32: 14557 | M32: 285 | N32: 177 | Y32: 0,4
B33: Накладные расходы | K33: 211
B34: Сметная прибыль | K34: 127
B35: Итоги по смете:
B36: Озеленение. Защитные лесонасаждения | K36: 14895 | Y36: 0,4
B37: Итого | K37: 14895 | Y37: 0,4
B38: В том числе:
B39: Материалы | K39: 14272
B40: Машины и механизмы | K40: 285
B41: ФОТ | K41: 177
B42: Накладные расходы | K42: 211
B43: Сметная прибыль | K43: 127
B44: ВСЕГО по смете | K44: 14895 | Y44: 0,4
